Cogmind - Beta 12 @@@ ROGUE MODE // 2023.09.07 @ 22:45:41 Player: monistgf Result: Destroyed by G-34 Mercenary with Small Laser Performance ------------- Evolutions (1) 500 Regions Visited (3) 600 Robots Destroyed (36) 180 Value Destroyed (752) 752 Prototype IDs (0) 0 Alien Tech Used (0) 0 Bonus (0) 0 TOTAL SCORE: 2032 Bonus ------- None Cogmind --------- Core Integrity 0/400 Matter 136/300 Energy 89/100 System Corruption 0% Temperature Cool (6) Movement Treading (160) Location -9/Storage Parts ------- > --- POWER (1) -------- (None) > --- PROPULSION (2) --- Improved Treads Improved Treads > --- UTILITY (2) ------ Medium Storage Unit Seismic Detector > --- WEAPON (4) ------- Light Assault Rifle Improved Light Cannon Flail > --- INVENTORY (10) --- Improved Treads Improved Treads Improved Treads Aluminum Leg Aluminum Leg Armored Wheel Armored Wheel Armored Wheel Large Storage Unit Peak State ------------ > --- POWER ------------ (None) > --- PROPULSION ------- Improved Treads Improved Treads > --- UTILITY ---------- Medium Storage Unit Drone Bay > --- WEAPON ----------- Light Assault Rifle Improved Light Cannon Flail > --- INVENTORY -------- Improved Treads Improved Treads Improved Treads Aluminum Leg Aluminum Leg Armored Wheel Armored Wheel Armored Wheel Large Storage Unit Seismic Detector [Rating: 16] Favorites ----------- Power Ion Engine Engine Ion Engine Propulsion Aluminum Leg Treads Improved Treads Leg Aluminum Leg Wheel Armored Wheel Utility Medium Storage Unit Device Seismic Detector Storage Medium Storage Unit Processor Transport Network Coupler Protection Light Armor Plating Weapon Light Assault Rifle Energy Gun Medium Laser Ballistic Gun Light Assault Rifle Ballistic Cannon Improved Light Cannon Impact Weapon Flail Build | -11 -10 -9 -9 ------- Run | Jun Mat Mat Sto Slots Evolved 2 | . . 2 . Power . | . . . . Propulsion . | . . . . Utility . | . . . . Weapon 2 | . . 2 . Parts Attached 65 | 7 28 22 8 Power 9 | 2 6 1 . Engine 9 | 2 6 1 . Core . | . . . . Reactor . | . . . . Propulsion 25 | 2 13 6 4 Treads 2 | . . . 2 Leg 18 | 2 13 1 2 Wheel 5 | . . 5 . Hover . | . . . . Flight . | . . . . Utility 10 | 1 3 3 3 Device 4 | . . 1 3 Storage 3 | 1 2 . . Processor 1 | . 1 . . Hackware . | . . . . Protection 2 | . . 2 . Artifact . | . . . . Weapon 21 | 2 6 12 1 Energy Gun 3 | 1 1 1 . Energy Cannon . | . . . . Ballistic Gun 13 | 1 5 7 . Ballistic Cannon 4 | . . 3 1 Launcher . | . . . . Special Weapon . | . . . . Impact Weapon 1 | . . 1 . Slashing Weapon . | . . . . Piercing Weapon . | . . . . Special Melee Weapon . | . . . . Unidentified Prototypes . | . . . . Parts Lost 15 | . 3 12 . Power 3 | . 1 2 . Propulsion 3 | . 1 2 . Utility 2 | . . 2 . Weapon 7 | . 1 6 . Highest Loss Streak 8 | . 2 8 . To Critical Strikes . | . . . . Average Slot Usage (%) 89 | . 91 92 72 Engine 10 | . 12 9 . Treads 1 | . . . 19 Leg 17 | . 26 7 1 Wheel 5 | . . 14 . Device 1 | . . 1 7 Storage 12 | . 14 11 11 Processor 6 | . 8 3 . Protection 1 | . . 3 . Energy Gun 1 | . 3 . . Ballistic Gun 26 | . 23 34 11 Ballistic Cannon 2 | . . 4 11 Impact Weapon 1 | . . 1 11 Naked Turns . | . . . . Heaviest Build 26 | 13 17 26 18 Greatest Support 46 | 20 20 24 46 Greatest Overweight (x) 2 | 1 2 1 1 Average Overweight (x) . | . . . . Largest Inventory Capacity 10 | 8 10 10 10 Average Capacity 9 | 7 9 10 10 Most Carried 10 | 2 10 10 10 Average Carried 7 | 1 7 8 8 Final Capacity 10 | 8 10 10 10 Final Carried 10 | 2 10 6 9 Class Distribution -------------------- 37% | Mutant 34% | Scavenger-Mutant 11% | Scavenger-Skirmisher 5% | Scavenger-Tank 5% | Tank 5% | Scavenger-Gunner Dominant Class ---------------- Scavenger-Mutant | -10/Materials Scavenger-Skirmisher | -9/Materials Mutant | -9/Storage Resources | -11 -10 -9 -9 ----------- Run | Jun Mat Mat Sto Matter Collected 988 | 214 428 346 . Remotely . | . . . . Salvage Created 1208 | . 486 722 . Parts 74 | . 28 46 . Haulers Intercepted 5 | . 2 3 . Recyclers Shooed 2 | . 1 1 . Parts Field Recycled . | . . . . Retrieved Matter . | . . . . Parts Self-Destructed . | . . . . Prevented . | . . . . Kills | -11 -10 -9 -9 ------- Run | Jun Mat Mat Sto Combat Hostiles Destroyed 29 | . 9 20 . Guns 28 | . 9 19 . Cannons 1 | . . 1 . Classes Destroyed 6 | . 5 1 . Worker 1 | . 1 . . Hauler 5 | . 2 3 . Recycler 1 | . 1 . . Swarmer 12 | . 3 9 . Grunt 16 | . 6 10 . Sentry 1 | . . 1 . Best Kill Streak 12 | . 3 12 . Combat Bots Only 11 | . 3 11 . Max Kills in Single Turn 2 | . 1 2 . Gunslinging 1 | . . 1 . Exploded . | . . . . Melee . | . . . . Uniques/NPCs Destroyed . | . . . . Combat | -11 -10 -9 -9 -------- Run | Jun Mat Mat Sto Damage Taken 2462 | . 519 1920 23 Core 501 | . 99 390 12 Absorbed by Shields . | . . . . Core Remaining (%) 80 | 100 60 . . Volleys Fired 116 | . 54 61 1 Largest 4 | . 2 4 2 Hottest 99 | . 70 99 59 Shots Fired 312 | . 107 203 2 Gun 307 | . 107 199 1 Cannon 5 | . . 4 1 Launcher . | . . . . Special . | . . . . Kinetic 288 | . 83 203 2 Thermal 24 | . 24 . . Explosive . | . . . . Electromagnetic . | . . . . Robot Hit Streak 14 | . 14 11 2 Robot Miss Streak 5 | . 5 5 . Penetration Max . | . . . . Secondary Targets 6 | . 3 3 . Max Gunslinging Chain 1 | . 1 1 . Shots Hit Robots 202 | . 74 126 2 Core Hits 71 | . 27 44 . Critical Kills 2 | . 1 1 . Critical Parts Destroyed 1 | . . 1 . Critical Strikes 3 | . 1 2 . Destroy 3 | . 1 2 . Melee Attacks 4 | . . 3 1 Impact 4 | . . 3 1 Slashing . | . . . . Piercing . | . . . . Sneak Attacks . | . . . . Combat Hostiles . | . . . . Follow-up Attacks . | . . . . Damage Inflicted 1923 | . 713 1177 33 Guns 1845 | . 703 1131 11 Cannons 45 | . . 23 22 Explosions . | . . . . Melee 23 | . . 23 . Ramming 10 | . 10 . . Kinetic 1678 | . 491 1154 33 Thermal 212 | . 212 . . Explosive . | . . . . Electromagnetic . | . . . . Impact 23 | . . 23 . Slashing . | . . . . Piercing . | . . . . Highest Corruption . | . . . . Average Corruption . | . . . . Corruption Purged . | . . . . Corruption Blocked . | . . . . Overload Shots . | . . . . Overflow Damage . | . . . . Projectiles . | . . . . Explosions . | . . . . Melee . | . . . . Knockbacks . | . . . . Impact . | . . . . Kinetic . | . . . . Secondary . | . . . . Self-Inflicted Damage . | . . . . Shots . | . . . . Rammed . | . . . . Targets Rammed 4 | . 4 . . Kicked 4 | . 4 . . Crushed . | . . . . Highest Temperature 263 | . 172 263 . Average Temperature 65 | . 53 71 . Received Heat Transfer 738 | . 222 504 12 Effects 4 | . . 4 . Interference 4 | . . 4 . Siege Activations . | . . . . Robots Corrupted . | . . . . Combat Hostiles . | . . . . Parts Fried . | . . . . Impact Corruptions . | . . . . Robots Melted . | . . . . Combat Hostiles . | . . . . Parts Melted . | . . . . Heat Transferred 629 | . 629 . . Parts Sabotaged . | . . . . Parts Stolen . | . . . . Parts Stripped . | . . . . Power Chain Reactions . | . . . . Missiles Intercepted . | . . . . Alert | -11 -10 -9 -9 ------- Run | Jun Mat Mat Sto Peak Influence 402 | . 213 402 153 Initial 138 | . . . 138 Average 120 | . 80 184 144 Maximum Alert Level 2 | . 1 2 . Low Security (%) 73 | 100 81 50 100 Level 1 26 | . 18 48 . Level 2 . | . . 1 . Level 3 . | . . . . Level 4 . | . . . . Level 5 . | . . . . High Security . | . . . . Max Security . | . . . . Squads Dispatched 5 | . 1 2 2 Investigation 2 | . . 2 . Extermination . | . . . . Reinforcement 3 | . 1 . 2 Assault . | . . . . Garrison . | . . . . Intercept . | . . . . Searches Triggered . | . . . . Construction Impeded . | . . . . Haulers Reinforced . | . . . . Active Scanning Responses . | . . . . Cargo Convoy Interrupts . | . . . . Stealth | -11 -10 -9 -9 --------- Run | Jun Mat Mat Sto Distress Signals 4 | . . 4 . Communications Jammed . | . . . . Distress Signals . | . . . . Times Spotted 56 | . 17 38 1 Peak Tracking Total 12 | . 4 12 1 Tactical Retreats 2 | . . 2 . Traps | -11 -10 -9 -9 ------- Run | Jun Mat Mat Sto Traps Triggered 6 | . 5 1 . Indirectly . | . . . . Trap Hack Attempts . | . . . . Triggered . | . . . . Disarmed . | . . . . Reprogrammed . | . . . . Reused . | . . . . Traps Extracted . | . . . . Installed . | . . . . Triggered . | . . . . Machines | -11 -10 -9 -9 ---------- Run | Jun Mat Mat Sto Machines Disabled . | . . . . Max in Single Turn . | . . . . Machines Repaired . | . . . . Machines Sabotaged . | . . . . Overloaded Fab Kills . | . . . . Hacking | -11 -10 -9 -9 --------- Run | Jun Mat Mat Sto Machines Accessed 6 | . 2 1 3 Terminals 6 | . 2 1 3 Fabricators . | . . . . Repair Stations . | . . . . Recycling Units . | . . . . Scanalyzers . | . . . . Garrison Access . | . . . . Total Hacks 19 | . 7 3 9 Successful 7 | . 3 1 3 Failed 12 | . 4 2 6 Catastrophic 1 | . . 1 . Database Lockouts . | . . . . Manual 11 | . 6 2 3 Terminals 19 | . 7 3 9 Fabricators . | . . . . Repair Stations . | . . . . Recycling Units . | . . . . Scanalyzers . | . . . . Garrison Access . | . . . . Terminal Hacks 7 | . 3 1 3 Robot Analysis 4 | . 3 1 . Open Door 1 | . . . 1 Level Access Points 1 | . . . 1 Terminal Index 1 | . . . 1 Fabricator Hacks . | . . . . Repair Station Hacks . | . . . . Recycling Unit Hacks . | . . . . Scanalyzer . | . . . . Garrison Access Hacks . | . . . . Unauthorized Hacks . | . . . . Terminals . | . . . . Fabricators . | . . . . Repair Stations . | . . . . Recycling Units . | . . . . Scanalyzers . | . . . . Garrison Access . | . . . . Data Cores Recovered . | . . . . Used . | . . . . Hacking Detections 6 | . 2 1 3 Full Trace Events 2 | . 1 1 . Feedback Events . | . . . . Feedback Blocked . | . . . . Robot Schematics Acquired . | . . . . Robots Built . | . . . . Authchips . | . . . . Time . | . . . . Total Robot Build Rating . | . . . . Part Schematics Acquired . | . . . . Parts Built . | . . . . Authchips . | . . . . Time . | . . . . Total Part Build Rating . | . . . . Parts Repaired . | . . . . Time . | . . . . Parts Recycled . | . . . . Recycled Matter . | . . . . Retrieved Matter . | . . . . Retrieved Components . | . . . . Parts Scanalyzed . | . . . . Part Schematics Acquired . | . . . . Parts Damaged . | . . . . Bothacking | -11 -10 -9 -9 ------------ Run | Jun Mat Mat Sto Used RIF Installer . | . . . . Robots Hacked . | . . . . Non-combat . | . . . . Combat . | . . . . Robot Hacks Applied . | . . . . Relay Couplers Released . | . . . . Fabnet Peak Effective % . | . . . . Robots Rewired . | . . . . Allies Hacked . | . . . . Hacks Repelled . | . . . . Allies | -11 -10 -9 -9 -------- Run | Jun Mat Mat Sto Total Allies . | . . . . Largest Group . | . . . . Highest-Rated Group . | . . . . Highest-Rated Ally . | . . . . Total Orders 1 | . . . 1 EXPLORE 1 | . . . 1 Ally Attacks . | . . . . Total Damage . | . . . . Kills . | . . . . Allies Corrupted . | . . . . Allies Melted . | . . . . Intel | -11 -10 -9 -9 ------- Run | Jun Mat Mat Sto Robot Analysis Total 4 | . 3 1 . Derelict Logs Recovered . | . . . . Drone Launches 2 | . . . 2 Drone Recoveries 2 | . . . 2 Exploration | -11 -10 -9 -9 ------------- Run | Jun Mat Mat Sto Turns Passed 1624 | 64 821 576 163 Spaces Moved 863 | 42 478 289 54 Core 5 | 4 1 . . Treads 47 | . . . 47 Legs 599 | 38 477 77 7 Wheels 212 | . . 212 . Hover . | . . . . Flight . | . . . . Fastest Speed 50 | 50 120 90 120 Average Speed 121 | 125 121 115 156 Slowest Speed 190 | 190 190 190 190 Overloaded Moves . | . . . . Propulsion Burnouts . | . . . . Robots Hopped . | . . . . Cave-ins Triggered . | . . . . Exploration Rate (%) 31 | 4 74 31 16 Regions Visited 3 Branch Regions 1 Pre-discovered Areas . | . . . . Known Exits Taken . | . . . . Unknown Exits Taken 3 | 1 1 1 . Scrap Searched . | . . . . Spaces Dug 3 | . . 2 1 Terrain Destroyed 3 | . . 2 1 Melee 3 | . . 2 1 Projectile . | . . . . AOE . | . . . . Terrain Rammed . | . . . . Walls Destroyed . | . . . . Machines Disabled . | . . . . Actions | -11 -10 -9 -9 --------- Run | Jun Mat Mat Sto Total 1224 | 49 622 422 131 Wait 125 | . 41 24 60 Move 860 | 41 477 288 54 Hop . | . . . . Pick Up 25 | 1 9 12 3 Fast Attach 29 | 6 15 5 3 Attach 17 | . 3 11 3 Detach 6 | . 1 2 3 Swap 19 | 1 10 6 2 Drop 19 | . 8 10 1 Fire 116 | . 54 61 1 Melee 4 | . . 3 1 Ram . | . . . . Kick 4 | . 4 . . Crush . | . . . . Escape Stasis . | . . . . Rewire . | . . . . Trap . | . . . . Miscellaneous . | . . . . Route ------- -11/Junkyard -10/Materials (discovered 3 exits: *Mat x2 / [*Min]) -9/Materials (discovered 2 exits: [*Min] / *Sto) -9/Storage (discovered 1 exit: Mat) History --------- Turn | Location | Event 17 | -11/Junkyard | Discovered new exit (range 15) 65 | -11/Junkyard | Entered Materials 304 | -10/Materials | Build established: Mutant 320 | -10/Materials | Discovered new exit (range 16) 412 | -10/Materials | Discovered new exit (range 15) 628 | -10/Materials | Discovered new exit (range 9) 632 | -10/Materials | Build established: Scavenger-Mutant 886 | -10/Materials | Entered another Materials area 886 | -9/Materials | Evolved 2 slots: Weapon x2 1073 | -9/Materials | Discovered new exit (range 7) 1224 | -9/Materials | Lost 3 parts (1p2w) 1246 | -9/Materials | Destroyed 11 combat bots 1291 | -9/Materials | Discovered new exit (range 9) 1365 | -9/Materials | Core integrity fell below 50% 1396 | -9/Materials | Core integrity fell below 20% 1427 | -9/Materials | Lost 8 parts (1p2n1u4w) 1462 | -9/Materials | Entered Storage 1592 | -9/Storage | Identified exit to Materials 1625 | -9/Storage | Destroyed by G-34 Mercenary with Small Laser Last Messages --------------- >>Open(Door) Sealed Heavy Doors opened. 01541_ Acquired Drone Bay. 01544_ Drone released from Drone Bay. 01549_ T-07 Excavator is excavating. 01551_ O-16 Technician: "IFF HANDSHAKE FAILED. SECURING TERMINAL." 01552_ O-16 Technician uses terminal to summon reinforcements. 01552_ ALERT: Hostiles spotted, dispatching reinforcements to Terminal S006. 01552_ O-16 Technician locks terminal. 01557_ T-07 Excavator is excavating. 01560_ ALERT: Hostiles spotted, dispatching reinforcements to Terminal S007. 01567_ Drone retrieved by Drone Bay. 01575_ Dropped Drone Bay. 01592_ Connecting with Terminal... >>Access(Main) Found 1 level access point to Materials: (7,62) Map updated. Map ----- +----------------------------------------------------+ | | | | | | | | | | | ????????????????????????????####??###############? | | ???????????????????????????#! !#??# #? | | ???????????????????????????#! !#??# T """ #? | | ???????????????????????????#! !#??# """ #? | | ???????????????????????????#! !#??# [[ """ #? | | ?????????###???????????????## ###?# [ #? | | ?#+###???# ???????????????# T#?# [ #? | | ?# #### ##################+##########+#######? | | ## ^ #?? | | + T #?? | | ?# #?? | | ?# ##### ####+#############################?? | | ???????????# # T # #????????????????? | | ???????????# # # [ T #????????????????? | | ???????????# # # #????????????????? | | ???????????# # ] # #????????????????? | | ???????????# # # #????????????????? | | ???????????# # """"" # o""" #????????????????? | | ???????????# # """"" # """ #????????????????? | | ???????????# / """"" # """ #????????????????? | | ???????????# # # @ #????????????????? | | ???????????# ### ########g######????????????????? | | ???????????# #?###????# #????????????????????? | | ??????????? ????? ???????????????? | | ?????????? ? T ??????????? | | ?????????############### #######+####?????????? | | ???????????????????????##+###????????????????????? | | ?????????????????????????????????????????????????? | | ?????????????????????????????????????????????????? | | ?????????????????????????????????????????????????? | | ?????????????????????????????????????????????????? | | ?????????????????????????????????????????????????? | | ?????????????????????????????????????????????????? | | ?????????????????????????????????????????????????? | | ?????????????????????????????????????????????????? | | ?????????????????????????????????????????????????? | | ?????????????????????????????????????????????????? | | ?????????????????????????????????????????????????? | | ?????????????????????????????????????????????????? | | ?????????????????????????????????????????????????? | | ?????????????????????????????????????????????????? | | ?????????????????????????????????????????????????? | | ?????????????????????????????????????????????????? | | ?????????????????????????????????????????????????? | | ?????????????????????????????????????????????????? | +----------------------------------------------------+ Best States ------------- Heat Dissipation 28 Energy Generation 10 Energy Capacity 250 Matter Stores 300 Matter Capacity 300 Sight Range 16 Terrain Scan Density 10 Armor Coverage 150 Evasion (%) 55 Recoil Reduction 2 Item Schematics ----------------- None Robot Schematics ------------------ None Fabricated ------------ Nothing Alien Tech Used ----------------- None Achievements -------------- None Challenges ------------ None Game ------ Seed ConcussiveLegSaw Manual? 0 Play Time 00:21:40 Cumulative 29.1 hours Start 2023.09.07 @ 22:25:43 End 2023.09.07 @ 22:45:41 Sessions 1 Manual Loads 0 Difficulty Rogue Special Mode None Game No. 21 Rogue 21 Adventurer 0 Explorer 0 Win Type - Total 0 Types 0/0/0/0/0/0/0/0/0 Lore% 17 Gallery% 26 Achievement% 27 Wizard Run 0 Options --------- ASCII 0 Keyboard 1 Movement Numpad Keybinds 0 Fullscreen 1 Font 24/Terminus Map View 76x50 Tactical HUD 1 Map Filters NONE Filters NONE Steam 1 RUN: b6001560-2eda-4da1-892c-7fc796d8824f